[Event "Lueneburg Open-A 2019"]
[Site "Lueneburg"]
[Date "2019.08.08"]
[Round "6.35"]
[White "Fabregas, Oliver"]
[Black "Chmielewski, Axel"]
[Result "1/2-1/2"]
[ECO "A01"]
[WhiteElo "1956"]
[BlackElo "1811"]
[Annotator "NA"]
[PlyCount "108"]
[EventDate "2019.08.03"]
[EventType "swiss"]
[EventCountry "GER"]
[SourceTitle "playchess.com"]
[Source "ChessBase"]
[SourceQuality "1"]
[TimeControl "40/5400+30:1800+30"]

1. b3 {[%emt 0:00:00]} Nf6 {[%emt 0:03:31]} 2. Bb2 {[%emt 0:00:00]} d5 {[%emt 0:00:54]} 3. e3 {[%emt 0:00:00]} g6 {[%emt 0:02:03]} 4. c4 {[%emt 0:01:03]} e6 {[%emt 0:02:04]} 5. Nf3 {[%emt 0:01:18]} Bg7 {[%emt 0:00:40]} 6. d4 {[%emt 0:00:48]} O-O {[%emt 0:00:47]} 7. Bd3 {[%emt 0:02:32]} Nbd7 {[%emt 0:04:55]} 8. O-O {[%emt 0:01:08]} b6 {[%emt 0:05:00]} 9. Qe2 {[%emt 0:03:52]} Bb7 {[%emt 0:00:46]} 10. Nbd2 {[%emt 0:02:39]} Ne4 {[%emt 0:10:04]} 11. Rac1 {[%emt 0:05:03]} c5 {[%emt 0:04:56]} 12. Rfd1 {[%emt 0:03:36]} Rc8 {[%emt 0:03:26]} 13. Nf1 {[%emt 0:04:34]} Qe7 {[%emt 0:11:17]} 14. Ne1 {[%emt 0:07:47]} Rfd8 {[%emt 0:09:23]} 15. f3 {[%emt 0:02:16]} Nef6 {[%emt 0:00:43]} 16. cxd5 {[%emt 0:14:06]} exd5 {[%emt 0:04:54]} 17. Nc2 {[%emt 0:04:42]} Qe6 {[%emt 0:03:21]} 18. Nd2 {[%emt 0:08:23]} Re8 {[%emt 0:00:48]} 19. Re1 {[%emt 0:01:01]} Bh6 {[%emt 0:06:16]} 20. f4 {[%emt 0:04:43]} Bg7 {[%emt 0:01:46]} 21. Rf1 {[%emt 0:04:12]} Ne4 {[%emt 0:04:30]} 22. Bxe4 {[%emt 0:06:35]} dxe4 {[%emt 0:00:22]} 23. g4 {[%emt 0:02:08]} f5 {[%emt 0:04:09]} 24. g5 {[%emt 0:01:27]} Bd5 {[%emt 0:01:49]} 25. Rfd1 {[%emt 0:09:50]} a6 {[%emt 0:00:10]} 26. Nb1 {[%emt 0:00:57]} b5 {[%emt 0:03:41]} 27. Nc3 {[%emt 0:01:19]} c4 {[%emt 0:02:06]} 28. b4 {[%emt 0:00:40]} Nb6 {[%emt 0:00:49]} 29. h4 {[%emt 0:01:09]} Bb7 {[%emt 0:00:16]} 30. Kf2 {[%emt 0:00:43]} Nd5 {[%emt 0:00:53]} 31. Nxd5 {[%emt 0:00:15]} Bxd5 {[%emt 0:00:11]} 32. Bc3 {[%emt 0:00:03]} Kf7 {[%emt 0:00:10]} 33. Rh1 {[%emt 0:00:22]} Qd6 {[%emt 0:02:07]} 34. h5 {[%emt 0:00:32]} Rb8 {[%emt 0:00:31]} 35. Rh4 {[%emt 0:00:45]} a5 {[%emt 0:00:12]} 36. a3 {[%emt 0:00:37]} a4 {[%emt 0:01:15]} 37. Rch1 {[%emt 0:00:20]} Rh8 {[%emt 0:00:56]} 38. Ke1 {[%emt 0:00:42]} Rbe8 {[%emt 0:01:20]} 39. Kd2 {[%emt 0:00:19]} Ke7 {[%emt 0:00:56]} 40. R1h2 {[%emt 0:00:54]} Qb8 {[%emt 0:01:40]} 41. Qg2 {[%emt 0:31:01]} Kd7 {[%emt 0:32:30]} 42. Qh1 {[%emt 0:00:34]} Kc6 {[%emt 0:02:13]} 43. Ne1 {[%emt 0:01:38]} Kb6 {[%emt 0:00:00]} 44. Ng2 {[%emt 0:00:00]} Bf7 {[%emt 0:00:00]} 45. hxg6 {[%emt 0:00:00]} hxg6 {[%emt 0:02:10]} 46. Rxh8 {[%emt 0:00:00]} Rxh8 {[%emt 0:00:00]} 47. Rxh8 {[%emt 0:00:00]} Qxh8 {[%emt 0:00:00]} 48. Qxh8 {[%emt 0:00:00]} Bxh8 {[%emt 0:00:00]} 49. Nh4 {[%emt 0:00:00]} Kc7 {[%emt 0:00:00]} 50. d5 {[%emt 0:00:00]} Bxc3+ {[%emt 0:00:00]} 51. Kxc3 {[%emt 0:00:00]} Kd6 {[%emt 0:00:00]} 52. Kd4 {[%emt 0:00:00]} Be8 {[%emt 0:00:00]} 53. Ng2 {[%emt 0:00:00]} Bf7 {[%emt 0:00:00]} 54. Ne1 Bxd5 1/2-1/2

[Event "Lueneburg Open-A 2019"]
[Site "Lueneburg"]
[Date "2019.08.08"]
[Round "6.36"]
[White "Nyenhuis, Yannek"]
[Black "Schulze, Lukas"]
[Result "1-0"]
[ECO "A57"]
[WhiteElo "1927"]
[BlackElo "1724"]
[Annotator "NA"]
[PlyCount "79"]
[EventDate "2019.08.03"]
[EventType "swiss"]
[EventCountry "GER"]
[SourceTitle "playchess.com"]
[Source "ChessBase"]
[SourceQuality "1"]
[TimeControl "40/5400+30:1800+30"]

1. d4 {[%emt 0:00:00]} Nf6 {[%emt 0:00:00]} 2. c4 {[%emt 0:00:00]} c5 {[%emt 0:00:04]} 3. d5 {[%emt 0:00:00]} b5 {[%emt 0:00:03]} 4. Nf3 {[%emt 0:00:00]} bxc4 {[%emt 0:02:43]} 5. Nc3 {[%emt 0:00:29]} d6 {[%emt 0:02:35]} 6. e4 {[%emt 0:00:37]} Ba6 {[%emt 0:03:31]} 7. e5 {[%emt 0:03:15]} dxe5 {[%emt 0:04:37]} 8. Nxe5 {[%emt 0:00:07]} Bb7 {[%emt 0:07:24]} 9. Bxc4 {[%emt 0:01:40]} g6 {[%emt 0:00:51]} 10. Qb3 {[%emt 0:07:53]} Qb6 {[%emt 0:03:35]} 11. Bb5+ {[%emt 0:03:50]} Nfd7 {[%emt 0:04:30]} 12. Na4 {[%emt 0:04:13]} Qd6 {[%emt 0:02:53]} 13. Nxd7 {[%emt 0:05:03]} Nxd7 {[%emt 0:01:05]} 14. Qc3 {[%emt 0:03:01]} Rg8 {[%emt 0:10:02]} 15. Nxc5 {[%emt 0:02:40]} Bc8 {[%emt 0:03:09]} 16. O-O {[%emt 0:10:25]} Qxd5 {[%emt 0:02:21]} 17. Be3 {[%emt 0:00:53]} Bg7 {[%emt 0:04:25]} 18. Qc2 {[%emt 0:02:22]} Qe5 {[%emt 0:08:46]} 19. Rad1 {[%emt 0:03:22]} Qc7 {[%emt 0:01:34]} 20. Bxd7+ {[%emt 0:01:21]} Bxd7 {[%emt 0:00:29]} 21. Rxd7 {[%emt 0:00:07]} Qb8 {[%emt 0:01:01]} 22. b3 {[%emt 0:03:57]} Qb4 {[%emt 0:01:04]} 23. Rfd1 {[%emt 0:01:51]} Be5 {[%emt 0:03:56]} 24. Qe4 {[%emt 0:02:11]} Qxe4 {[%emt 0:01:17]} 25. Nxe4 {[%emt 0:00:10]} f6 {[%emt 0:00:28]} 26. Rxa7 {[%emt 0:00:33]} Rc8 {[%emt 0:00:20]} 27. g3 {[%emt 0:00:33]} Bc7 {[%emt 0:00:57]} 28. Rc1 {[%emt 0:00:43]} Kd7 {[%emt 0:00:24]} 29. Bb6 {[%emt 0:01:05]} Rb8 {[%emt 0:01:07]} 30. Bxc7 {[%emt 0:00:24]} Rb5 {[%emt 0:00:28]} 31. Bf4+ {[%emt 0:00:44]} Ke6 {[%emt 0:00:20]} 32. a4 {[%emt 0:01:47]} Rb4 {[%emt 0:01:03]} 33. Nd2 {[%emt 0:01:03]} Rd8 {[%emt 0:00:44]} 34. Re1+ {[%emt 0:00:29]} Kf5 {[%emt 0:00:18]} 35. Rexe7 {[%emt 0:00:32]} h5 {[%emt 0:01:13]} 36. Ra5+ {[%emt 0:00:27]} Kg4 {[%emt 0:00:33]} 37. Kg2 {[%emt 0:00:25]} Rb5 {[%emt 0:01:11]} 38. h3+ {[%emt 0:00:19]} Kf5 {[%emt 0:00:13]} 39. Rxb5+ {[%emt 0:00:09]} Rd5 {[%emt 0:00:10]} 40. Rxd5# {[%emt 0:00:07]} 1-0

[Event "Lueneburg Open-A 2019"]
[Site "Lueneburg"]
[Date "2019.08.08"]
[Round "6.37"]
[White "Nixdorf, Andre"]
[Black "Indinger, Alexander"]
[Result "1-0"]
[ECO "D53"]
[WhiteElo "1936"]
[BlackElo "1764"]
[Annotator "NA"]
[PlyCount "91"]
[EventDate "2019.08.03"]
[EventType "swiss"]
[EventCountry "GER"]
[SourceTitle "playchess.com"]
[Source "ChessBase"]
[SourceQuality "1"]
[TimeControl "40/5400+30:1800+30"]

1. d4 {[%emt 0:00:00]} d5 {[%emt 0:06:44]} 2. Nf3 {[%emt 0:00:00]} Nf6 {[%emt 0:00:23]} 3. c4 {[%emt 0:00:08]} e6 {[%emt 0:00:37]} 4. Nc3 {[%emt 0:00:45]} Be7 {[%emt 0:00:27]} 5. Bg5 {[%emt 0:00:23]} Nbd7 {[%emt 0:01:55]} 6. e3 {[%emt 0:00:15]} h6 {[%emt 0:00:40]} 7. Bh4 {[%emt 0:00:24]} Ne4 {[%emt 0:00:48]} 8. Bxe7 {[%emt 0:00:50]} Qxe7 {[%emt 0:00:06]} 9. Rc1 {[%emt 0:05:31]} Nxc3 {[%emt 0:02:53]} 10. Rxc3 {[%emt 0:00:16]} O-O {[%emt 0:00:09]} 11. cxd5 {[%emt 0:01:14]} exd5 {[%emt 0:02:20]} 12. Rxc7 {[%emt 0:00:39]} Qd6 {[%emt 0:01:23]} 13. Qc2 {[%emt 0:01:43]} Nb6 {[%emt 0:00:42]} 14. Rc3 {[%emt 0:05:33]} Bd7 {[%emt 0:01:07]} 15. Bd3 {[%emt 0:02:59]} Na4 {[%emt 0:01:04]} 16. Rb3 {[%emt 1:17:20]} Rac8 {[%emt 0:01:25]} 17. Qd2 {[%emt 0:00:00]} Nb6 {[%emt 0:00:51]} 18. O-O {[%emt 0:00:00]} Rc7 {[%emt 0:02:08]} 19. Rc1 {[%emt 0:00:00]} Rfc8 {[%emt 0:00:14]} 20. Rbc3 {[%emt 0:00:00]} Na4 {[%emt 0:00:34]} 21. Rxc7 {[%emt 0:00:00]} Rxc7 {[%emt 0:00:04]} 22. Rxc7 {[%emt 0:00:00]} Qxc7 {[%emt 0:00:03]} 23. b3 {[%emt 0:00:00]} Nb6 {[%emt 0:01:09]} 24. Qc2 {[%emt 0:00:00]} Qxc2 {[%emt 0:01:22]} 25. Bxc2 {[%emt 0:00:00]} f6 {[%emt 0:00:49]} 26. Kf1 {[%emt 0:00:00]} Nc8 {[%emt 0:00:20]} 27. Ke2 {[%emt 0:00:00]} Nd6 {[%emt 0:00:21]} 28. Nd2 {[%emt 0:00:00]} Nb5 {[%emt 0:00:39]} 29. Nb1 {[%emt 0:00:00]} Kf7 {[%emt 0:00:53]} 30. a4 {[%emt 0:00:00]} Nd6 {[%emt 0:00:47]} 31. Nc3 {[%emt 0:00:00]} Ke6 {[%emt 0:00:43]} 32. a5 {[%emt 0:00:00]} b6 {[%emt 0:01:03]} 33. axb6 {[%emt 0:00:00]} axb6 {[%emt 0:00:04]} 34. Bh7 {[%emt 0:00:00]} Bc6 {[%emt 0:05:08]} 35. Bg8+ {[%emt 0:00:00]} Nf7 {[%emt 0:00:05]} 36. f3 {[%emt 0:00:00]} Ke7 {[%emt 0:00:26]} 37. h4 {[%emt 0:00:00]} Kf8 {[%emt 0:05:17]} 38. Bh7 {[%emt 0:00:00]} Nd6 {[%emt 0:01:21]} 39. Bd3 {[%emt 0:00:00]} Ke7 {[%emt 0:01:24]} 40. e4 {[%emt 0:00:00]} Ke6 {[%emt 0:01:26]} 41. Ke3 {[%emt 0:00:00]} g5 {[%emt 0:36:27]} 42. g3 {[%emt 0:00:03]} gxh4 {[%emt 0:00:27]} 43. gxh4 {[%emt 0:00:06]} Nb7 {[%emt 0:00:47]} 44. exd5+ {[%emt 0:00:28]} Bxd5 {[%emt 0:00:07]} 45. Nxd5 {[%emt 0:00:08]} Kxd5 {[%emt 0:00:05]} 46. Be4+ {[%emt 0:00:05]} 1-0

[Event "Lueneburg Open-A 2019"]
[Site "Lueneburg"]
[Date "2019.08.09"]
[Round "7.1"]
[White "Vorobiov, Evgeny E."]
[Black "Ertan, Can"]
[Result "1-0"]
[ECO "A18"]
[WhiteElo "2578"]
[BlackElo "2396"]
[Annotator "ChessBase"]
[PlyCount "136"]
[EventDate "2019.08.03"]
[EventType "swiss"]
[EventCountry "GER"]
[SourceTitle "playchess.com"]
[Source "ChessBase"]
[SourceQuality "1"]
[TimeControl "40/5400+30:1800+30"]

1. c4 {[%emt 0:00:26]} Nf6 {[%emt 0:00:00]} 2. Nc3 {[%emt 0:00:23]} e6 {[%emt 0:00:53]} 3. e4 {[%emt 0:01:13]} e5 {[%emt 0:00:27]} 4. Nf3 {[%emt 0:02:17]} Nc6 {[%emt 0:00:07]} 5. Be2 {[%emt 0:02:52]} Bc5 {[%emt 0:00:26]} 6. Nxe5 {[%emt 0:01:06]} Nxe5 {[%emt 0:00:04]} 7. d4 {[%emt 0:00:05]} Bb4 {[%emt 0:00:08]} 8. dxe5 {[%emt 0:01:13]} Nxe4 {[%emt 0:00:04]} 9. Qd4 {[%emt 0:03:17]} Nxc3 {[%emt 0:00:44]} 10. bxc3 {[%emt 0:00:07]} Be7 {[%emt 0:00:09]} 11. Bf4 {[%emt 0:14:06]} O-O {[%emt 0:01:57]} 12. Rd1 {[%emt 0:00:28]} d6 {[%emt 0:01:08]} 13. exd6 {[%emt 0:11:05]} cxd6 {[%emt 0:00:21]} 14. O-O {[%emt 0:01:45]} Be6 {[%emt 0:00:50]} 15. Bf3 {[%emt 0:14:06]} Rc8 {[%emt 0:02:53]} 16. Qxa7 {[%emt 0:09:22]} Rxc4 {[%emt 0:00:25]} 17. Be3 {[%emt 0:01:38]} b5 {[%emt 0:08:00]} 18. Bd4 {[%emt 0:06:37]} Ra4 {[%emt 0:15:48]} 19. Qb7 {[%emt 0:00:21]} Qd7 {[%emt 0:00:10]} 20. Qxd7 {[%emt 0:03:54]} Bxd7 {[%emt 0:00:03]} 21. Bd5 {[%emt 0:00:36]} Be6 {[%emt 0:00:06]} 22. Bb3 {[%emt 0:00:23]} Ra6 {[%emt 0:00:12]} 23. Rfe1 {[%emt 0:03:43]} d5 {[%emt 0:00:09]} 24. Re3 {[%emt 0:02:37]} Bd6 {[%emt 0:12:18]} 25. Rde1 {[%emt 0:00:22]} Rd8 {[%emt 0:14:46]} 26. g3 {[%emt 0:01:17]} Raa8 {[%emt 0:00:05]} 27. Kg2 {[%emt 0:02:17]} Rac8 {[%emt 0:03:34]} 28. h4 {[%emt 0:01:13]} Kf8 {[%emt 0:02:24]} 29. Rb1 {[%emt 0:03:33]} Bc5 {[%emt 0:02:26]} 30. Rd1 {[%emt 0:02:32]} Rc6 {[%emt 0:02:09]} 31. f3 {[%emt 0:03:01]} Rdc8 {[%emt 0:05:46]} 32. Kf2 {[%emt 0:00:56]} Ke7 {[%emt 0:05:01]} 33. Bxc5+ {[%emt 0:03:20]} Rxc5 {[%emt 0:00:06]} 34. Rxd5 {[%emt 0:01:48]} Rxc3 {[%emt 0:00:11]} 35. Rxb5 {[%emt 0:01:18]} Rxe3 {[%emt 0:00:44]} 36. Kxe3 {[%emt 0:00:02]} Rc3+ {[%emt 0:00:47]} 37. Kf4 {[%emt 0:01:25]} Bxb3 {[%emt 0:00:11]} 38. axb3 {[%emt 0:00:12]} h5 {[%emt 0:00:58]} 39. Re5+ {[%emt 0:00:55]} Kf6 {[%emt 0:03:33]} 40. Re3 {[%emt 0:00:33]} Rc1 {[%emt 0:03:46]} 41. b4 {[%emt 0:03:44]} Rb1 {[%emt 0:00:43]} 42. Re4 {[%emt 0:00:05]} Rb3 {[%emt 0:00:13]} 43. Rc4 {[%emt 0:00:23]} g6 {[%emt 0:02:52]} 44. Rc6+ {[%emt 0:02:18]} Kg7 {[%emt 0:00:26]} 45. Rb6 {[%emt 0:00:10]} Kh6 {[%emt 0:02:40]} 46. Ke4 {[%emt 0:02:11]} Kg7 {[%emt 0:00:21]} 47. Rb7 {[%emt 0:01:19]} Kf6 {[%emt 0:00:12]} 48. b5 {[%emt 0:07:00]} Rb4+ {[%emt 0:01:14]} 49. Kd5 {[%emt 0:01:15]} Rb3 {[%emt 0:00:09]} 50. Kc4 {[%emt 0:02:33]} Rxf3 {[%emt 0:01:13]} 51. Rd7 {[%emt 0:02:44]} Rxg3 {[%emt 0:02:24]} 52. b6 {[%emt 0:00:08]} Rg1 {[%emt 0:04:15]} 53. b7 {[%emt 0:00:13]} Rb1 {[%emt 0:00:23]} 54. Kc5 {[%emt 0:00:12]} Rc1+ {[%emt 0:16:15]} 55. Kd6 {[%emt 0:00:44]} Rb1 {[%emt 0:00:33]} 56. Kc7 {[%emt 0:00:43]} Kf5 {[%emt 0:03:55]} 57. Rxf7+ {[%emt 0:00:51]} Kg4 {[%emt 0:00:05]} 58. Rg7 {[%emt 0:00:28]} Rc1+ {[%emt 0:04:03]} 59. Kd7 {[%emt 0:02:21]} Rd1+ {[%emt 0:04:54]} 60. Kc8 {[%emt 0:00:37]} Rf1 {[%emt 0:00:57]} 61. Rxg6+ {[%emt 0:01:28]} Kxh4 {[%emt 0:00:12]} 62. b8=Q {[%emt 0:00:17]} Rf8+ {[%emt 0:00:04]} 63. Kc7 {[%emt 0:00:05]} Rxb8 {[%emt 0:00:05]} 64. Kxb8 {[%emt 0:00:28]} Kh3 {[%emt 0:00:09]} 65. Kc7 {[%emt 0:00:06]} h4 {[%emt 0:00:04]} 66. Kd6 {[%emt 0:00:04]} Kh2 {[%emt 0:00:05]} 67. Ke5 {[%emt 0:00:03]} h3 {[%emt 0:00:19]} 68. Kf4 {[%emt 0:00:03]} Kh1 {[%emt 0:00:16]} 1-0

[Event "Lueneburg Open-A 2019"]
[Site "Lueneburg"]
[Date "2019.08.09"]
[Round "7.2"]
[White "Ovsejevitsch, Sergei"]
[Black "Sriram, Jha"]
[Result "1-0"]
[ECO "B10"]
[WhiteElo "2590"]
[BlackElo "2381"]
[Annotator "ChessBase"]
[PlyCount "71"]
[EventDate "2019.08.03"]
[EventType "swiss"]
[EventCountry "GER"]
[SourceTitle "playchess.com"]
[Source "ChessBase"]
[SourceQuality "1"]
[TimeControl "40/5400+30:1800+30"]

1. c4 {[%emt 0:00:00]} c6 {[%emt 0:01:22]} 2. e4 {[%emt 0:00:20]} d5 {[%emt 0:00:09]} 3. exd5 {[%emt 0:00:15]} cxd5 {[%emt 0:00:06]} 4. cxd5 {[%emt 0:00:36]} Nf6 {[%emt 0:00:23]} 5. Nc3 {[%emt 0:00:16]} g6 {[%emt 0:01:14]} 6. Bc4 {[%emt 0:01:29]} Bg7 {[%emt 0:00:23]} 7. Nge2 {[%emt 0:00:53]} O-O {[%emt 0:00:06]} 8. O-O {[%emt 0:00:31]} Nbd7 {[%emt 0:00:14]} 9. d3 {[%emt 0:03:36]} a6 {[%emt 0:00:19]} 10. a4 {[%emt 0:00:38]} Nb6 {[%emt 0:03:03]} 11. Qb3 {[%emt 0:05:11]} Bg4 {[%emt 0:03:34]} 12. Ng3 {[%emt 0:07:43]} h5 {[%emt 0:05:20]} 13. h3 {[%emt 0:03:03]} Bd7 {[%emt 0:04:49]} 14. Re1 {[%emt 0:08:21]} Nc8 {[%emt 0:07:04]} 15. Qxb7 {[%emt 0:07:29]} Nd6 {[%emt 0:00:06]} 16. Qb3 {[%emt 0:00:48]} Qc8 {[%emt 0:04:06]} 17. Nce4 {[%emt 0:08:34]} Bxh3 {[%emt 0:05:26]} 18. gxh3 {[%emt 0:02:15]} Qxh3 {[%emt 0:01:10]} 19. Ng5 {[%emt 0:01:42]} Qd7 {[%emt 0:00:52]} 20. Qd1 {[%emt 0:01:56]} Ng4 {[%emt 0:01:02]} 21. Qf3 {[%emt 0:05:20]} Ne5 {[%emt 0:11:17]} 22. Qg2 {[%emt 0:02:43]} Ndxc4 {[%emt 0:15:06]} 23. dxc4 {[%emt 0:00:15]} Rac8 {[%emt 0:00:10]} 24. Nf3 {[%emt 0:25:42]} Nxc4 {[%emt 0:01:44]} 25. Bg5 {[%emt 0:00:45]} Rfe8 {[%emt 0:02:08]} 26. Re2 {[%emt 0:01:19]} Qxd5 {[%emt 0:04:38]} 27. Nxh5 {[%emt 0:01:38]} Bxb2 {[%emt 0:03:22]} 28. Rae1 {[%emt 0:00:20]} Qa5 {[%emt 0:12:30]} 29. Nf6+ {[%emt 0:01:53]} Bxf6 {[%emt 0:01:10]} 30. Bxf6 {[%emt 0:00:04]} Nd6 {[%emt 0:01:25]} 31. Bxe7 {[%emt 0:01:00]} Qxa4 {[%emt 0:01:37]} 32. Ng5 {[%emt 0:03:31]} Kg7 {[%emt 0:03:42]} 33. Ne6+ {[%emt 0:01:58]} fxe6 {[%emt 0:00:35]} 34. Bxd6 {[%emt 0:00:04]} Qc6 {[%emt 0:00:35]} 35. Be5+ {[%emt 0:00:14]} Kf7 {[%emt 0:00:13]} 36. Re4 {[%emt 0:00:11]} 1-0

[Event "Lueneburg Open-A 2019"]
[Site "Lueneburg"]
[Date "2019.08.09"]
[Round "7.3"]
[White "Kollars, Dmitrij"]
[Black "Colpe, Malte"]
[Result "1-0"]
[ECO "C65"]
[WhiteElo "2581"]
[BlackElo "2367"]
[Annotator "ChessBase"]
[PlyCount "143"]
[EventDate "2019.08.03"]
[EventType "swiss"]
[EventCountry "GER"]
[SourceTitle "playchess.com"]
[Source "ChessBase"]
[SourceQuality "1"]
[TimeControl "40/5400+30:1800+30"]

1. e4 {[%emt 0:01:47]} e5 {[%emt 0:00:00]} 2. Nf3 {[%emt 0:00:07]} Nc6 {[%emt 0:00:00]} 3. Bb5 {[%emt 0:00:08]} Nf6 {[%emt 0:00:07]} 4. d3 {[%emt 0:00:15]} Bc5 {[%emt 0:00:11]} 5. c3 {[%emt 0:00:17]} O-O {[%emt 0:01:08]} 6. Nbd2 {[%emt 0:00:14]} d6 {[%emt 0:00:45]} 7. O-O {[%emt 0:00:36]} Ne7 {[%emt 0:01:35]} 8. d4 {[%emt 0:00:46]} exd4 {[%emt 0:00:24]} 9. cxd4 {[%emt 0:00:05]} Bb6 {[%emt 0:00:14]} 10. Re1 {[%emt 0:00:48]} Bg4 {[%emt 0:01:38]} 11. h3 {[%emt 0:00:34]} Bh5 {[%emt 0:00:15]} 12. a4 {[%emt 0:00:53]} a6 {[%emt 0:01:40]} 13. Bf1 {[%emt 0:00:49]} Re8 {[%emt 0:01:56]} 14. a5 {[%emt 0:08:52]} Ba7 {[%emt 0:00:04]} 15. Ra4 {[%emt 0:03:51]} Nc6 {[%emt 0:06:53]} 16. Qb3 {[%emt 0:11:59]} b5 {[%emt 0:24:31]} 17. axb6 {[%emt 0:01:13]} Bxb6 {[%emt 0:00:06]} 18. Bxa6 {[%emt 0:11:04]} Bxf3 {[%emt 0:29:01]} 19. Nxf3 {[%emt 0:00:44]} Ba5 {[%emt 0:09:44]} 20. Bb7 {[%emt 0:15:20]} Rb8 {[%emt 0:07:59]} 21. Re2 {[%emt 0:01:22]} Qd7 {[%emt 0:03:31]} 22. Qb5 {[%emt 0:03:40]} Nd8 {[%emt 0:05:38]} 23. Qxd7 {[%emt 0:01:55]} Nxd7 {[%emt 0:00:02]} 24. Ba6 {[%emt 0:01:30]} Bb4 {[%emt 0:01:31]} 25. Bd3 {[%emt 0:00:52]} c5 {[%emt 0:00:44]} 26. Be3 {[%emt 0:09:27]} cxd4 {[%emt 0:00:35]} 27. Bxd4 {[%emt 0:00:33]} Nc6 {[%emt 0:01:26]} 28. Bc4 {[%emt 0:04:39]} Nc5 {[%emt 0:01:07]} 29. Bxc5 {[%emt 0:00:17]} Bxc5 {[%emt 0:00:08]} 30. b3 {[%emt 0:02:15]} h6 {[%emt 0:01:02]} 31. Kf1 {[%emt 0:01:15]} g6 {[%emt 0:00:25]} 32. Ne1 {[%emt 0:01:57]} Nb4 {[%emt 0:00:55]} 33. g4 {[%emt 0:03:31]} Re7 {[%emt 0:00:22]} 34. Ng2 {[%emt 0:00:14]} Nc6 {[%emt 0:00:30]} 35. Nf4 {[%emt 0:00:34]} Ne5 {[%emt 0:00:39]} 36. Bd5 {[%emt 0:01:37]} Kg7 {[%emt 0:00:26]} 37. Kg2 {[%emt 0:00:18]} Nd7 {[%emt 0:00:31]} 38. Ra6 {[%emt 0:04:48]} Rb6 {[%emt 0:00:35]} 39. Rea2 {[%emt 0:02:34]} Nf6 {[%emt 0:00:31]} 40. Rxb6 {[%emt 0:04:35]} Bxb6 {[%emt 0:00:02]} 41. Ba8 {[%emt 0:02:17]} g5 {[%emt 0:15:36]} 42. Nd3 {[%emt 0:02:21]} Re8 {[%emt 0:05:41]} 43. Ra6 {[%emt 0:01:19]} Rb8 {[%emt 0:00:35]} 44. Bc6 {[%emt 0:00:54]} h5 {[%emt 0:01:31]} 45. f3 {[%emt 0:01:23]} hxg4 {[%emt 0:00:19]} 46. hxg4 {[%emt 0:00:22]} Ng8 {[%emt 0:02:17]} 47. Ra8 {[%emt 0:04:01]} Rxa8 {[%emt 0:00:07]} 48. Bxa8 {[%emt 0:00:03]} Ne7 {[%emt 0:00:26]} 49. b4 {[%emt 0:00:43]} Kf6 {[%emt 0:00:56]} 50. Bd5 {[%emt 0:03:32]} Ng6 {[%emt 0:02:46]} 51. Nb2 {[%emt 0:03:53]} Ne5 {[%emt 0:00:19]} 52. b5 {[%emt 0:00:47]} Bd4 {[%emt 0:00:22]} 53. Nd1 {[%emt 0:00:09]} Ke7 {[%emt 0:01:31]} 54. Kg3 {[%emt 0:02:20]} Kd7 {[%emt 0:00:50]} 55. Bb7 {[%emt 0:03:06]} Kc7 {[%emt 0:00:31]} 56. Ba6 {[%emt 0:00:32]} Kb6 {[%emt 0:00:56]} 57. f4 {[%emt 0:00:12]} gxf4+ {[%emt 0:00:28]} 58. Kxf4 {[%emt 0:00:04]} Nd3+ {[%emt 0:01:04]} 59. Kf3 {[%emt 0:00:41]} Nc5 {[%emt 0:00:39]} 60. Ne3 {[%emt 0:01:03]} Bxe3 {[%emt 0:01:58]} 61. Kxe3 {[%emt 0:00:01]} Ne6 {[%emt 0:01:33]} 62. Kf3 {[%emt 0:04:30]} Kc5 {[%emt 0:00:18]} 63. Kg3 {[%emt 0:00:13]} Nc7 {[%emt 0:01:01]} 64. Kf4 {[%emt 0:00:07]} d5 {[%emt 0:00:34]} 65. exd5 {[%emt 0:00:19]} Nxd5+ {[%emt 0:00:06]} 66. Ke4 {[%emt 0:02:11]} f6 {[%emt 0:00:41]} 67. Bb7 {[%emt 0:01:04]} Ne7 {[%emt 0:00:46]} 68. Bc6 {[%emt 0:00:07]} Ng6 {[%emt 0:00:21]} 69. Kf5 {[%emt 0:00:46]} Ne5 {[%emt 0:00:38]} 70. g5 {[%emt 0:00:17]} fxg5 {[%emt 0:00:39]} 71. Kxe5 {[%emt 0:00:04]} g4 {[%emt 0:00:05]} 72. Kf4 {[%emt 0:00:03]} 1-0

[Event "Lueneburg Open-A 2019"]
[Site "Lueneburg"]
[Date "2019.08.09"]
[Round "7.5"]
[White "Sebastian, Dirk"]
[Black "Wronn, Bernd"]
[Result "1-0"]
[ECO "B11"]
[WhiteElo "2453"]
[BlackElo "2128"]
[Annotator "RC"]
[PlyCount "59"]
[EventDate "2019.08.03"]
[EventType "swiss"]
[EventCountry "GER"]
[SourceTitle "playchess.com"]
[Source "ChessBase"]
[SourceQuality "1"]
[TimeControl "40/5400+30:1800+30"]

1. e4 {[%emt 0:00:00]} c6 {[%emt 0:00:58]} 2. Nc3 {[%emt 0:01:26]} d5 {[%emt 0:00:11]} 3. Nf3 {[%emt 0:00:04]} Nf6 {[%emt 0:01:13]} 4. e5 {[%emt 0:00:05]} Ne4 {[%emt 0:00:19]} 5. Ne2 {[%emt 0:00:06]} Qb6 {[%emt 0:03:17]} 6. d4 {[%emt 0:01:45]} e6 {[%emt 0:02:09]} 7. Nfg1 {[%emt 0:01:12]} f6 {[%emt 0:01:00]} 8. f3 {[%emt 0:00:15]} Ng5 {[%emt 0:00:10]} 9. exf6 {[%emt 0:00:43]} gxf6 {[%emt 0:00:24]} 10. f4 {[%emt 0:00:35]} Nf7 {[%emt 0:01:08]} 11. Nf3 {[%emt 0:00:22]} e5 {[%emt 0:00:39]} 12. fxe5 {[%emt 0:02:11]} fxe5 {[%emt 0:00:10]} 13. Ng3 {[%emt 0:00:59]} Bg4 {[%emt 0:10:59]} 14. Be2 {[%emt 0:00:56]} Bxf3 {[%emt 0:31:46]} 15. Bxf3 {[%emt 0:00:22]} Bg7 {[%emt 0:04:48]} 16. Nf5 {[%emt 0:13:23]} O-O {[%emt 0:03:47]} 17. O-O {[%emt 0:03:47]} Bf6 {[%emt 0:17:32]} 18. Bh5 {[%emt 0:04:21]} Kh8 {[%emt 0:00:27]} 19. Nh6 {[%emt 0:12:39]} Nd6 {[%emt 0:01:38]} 20. Nf7+ {[%emt 0:05:09]} Rxf7 {[%emt 0:00:37]} 21. Bxf7 {[%emt 0:00:08]} Ne4 {[%emt 0:00:04]} 22. Kh1 {[%emt 0:03:24]} Nd7 {[%emt 0:00:24]} 23. Be6 {[%emt 0:07:05]} Rd8 {[%emt 0:00:36]} 24. Bf5 {[%emt 0:05:46]} Qxd4 {[%emt 0:02:32]} 25. Qh5 {[%emt 0:01:33]} Nf8 {[%emt 0:00:03]} 26. Bh6 {[%emt 0:03:06]} Nd6 {[%emt 0:05:28]} 27. Bxf8 {[%emt 0:01:33]} Nxf5 {[%emt 0:00:02]} 28. Rxf5 {[%emt 0:00:32]} Rxf8 {[%emt 0:00:10]} 29. Qh6 {[%emt 0:00:38]} Qxb2 {[%emt 0:01:56]} 30. Qxf8# {[%emt 0:30:55]} 1-0